bitfinex/quotes_ETHUSD_20210701
["timestamp","ask_amount","ask_price","bid_price","bid_amount"]
[1625128125332,5.01,2132.9,2132.0,11.71916784]
[1625128125623,5.01,2132.8,2132.0,11.71916784]
[1625128125985,4.48819682,2133.0,2132.5,1.1012]
[1625128125986,0.02119682,2133.0,2132.5,1.1012]
[1625128126056,0.02119682,2133.0,2132.6,6.85090615]
[1625128126175,0.02119682,2133.0,2132.6,11.80214159]
[1625128126365,0.02119682,2133.0,2132.7,0.18]
[1625128126656,0.02025178,2133.6,2132.8,28.05]
[1625128126756,0.02025178,2133.6,2132.9,28.05]
[1625128126856,0.02025178,2133.6,2133.2,0.02959451]
[1625128126987,0.02025178,2133.6,2133.2,12.02975703]
[1625128127078,5.178e-05,2133.6,2133.3,6.89712534]
[1625128127260,5.178e-05,2133.6,2133.4,0.2]
[1625128127562,0.0180853,2134.4,2133.5,28.05]
[1625128127657,0.0180853,2134.4,2133.7,3.51212]
[1625128127762,0.0180853,2134.4,2133.7,8.01862]
[1625128127855,0.0180853,2134.4,2133.8,6.75693884]
[1625128127960,0.0180853,2134.4,2133.8,7.69891586]
[1625128128058,0.0180853,2134.4,2133.9,7.02401]
[1625128128985,0.0180853,2134.4,2134.0,10.10268564]
[1625128129085,0.0180853,2134.4,2134.1,35.3225777]
[1625128129192,0.0180853,2134.4,2134.1,37.0485777]
[1625128129287,0.0180853,2134.4,2134.1,9.0485777]
[1625128129386,0.0180853,2134.4,2134.1,8.74905]
[1625128129978,2.204e-05,2134.4,2134.2,23.95]
[1625128130076,2.204e-05,2134.4,2134.2,28.238]
[1625128130176,2.204e-05,2134.4,2134.3,24.28]
[1625128131225,2.204e-05,2134.4,2134.3,31.30284]
[1625128131627,2.204e-05,2134.4,2134.3,7.20284]
[1625128131933,2.204e-05,2134.4,2134.3,17.40284]
[1625128132338,2.204e-05,2134.4,2134.3,7.20284]
[1625128132975,0.01323137,2134.4,2134.3,14.50284]
[1625128133178,0.01323137,2134.4,2134.3,7.20284]
[1625128133289,0.01323137,2134.4,2134.3,0.18]
[1625128133475,0.01323137,2134.4,2134.0,9.37099674]
[1625128133596,0.01323137,2134.4,2134.0,0.00693674]
[1625128134282,0.01323137,2134.4,2134.0,7.03180674]
[1625128134930,0.01323137,2134.4,2134.1,0.04]
[1625128135326,0.01323137,2134.4,2134.1,7.06453]
[1625128135533,0.02640931,2134.2,2134.1,7.06453]
[1625128137180,0.02640931,2134.2,2134.1,0.04]
[1625128137273,0.02640931,2134.2,2134.0,0.00693674]
[1625128137971,5.03640931,2134.2,2134.0,0.00693674]
[1625128138071,27.51,2134.1,2134.0,0.00693674]
[1625128139223,5.01,2134.1,2134.0,0.00693674]
[1625128139470,0.02640931,2134.2,2134.0,0.00693674]
[1625128140319,0.01320034,2134.1,2134.0,0.00693674]
[1625128140769,28.01320034,2134.1,2133.8,9.196e-05]
[1625128140871,28.01320034,2134.1,2133.4,0.02025178]
[1625128140872,5.01,2133.9,2133.4,0.02025178]
[1625128140971,6.92232232,2133.8,2133.4,0.02025178]
[1625128141071,11.87173575,2133.8,2133.4,0.02025178]
[1625128141181,19.89147675,2133.8,2133.4,0.02025178]
[1625128141282,5.05,2133.7,2133.4,0.02025178]
[1625128141378,19.46,2133.5,2133.4,0.02025178]
[1625128141480,14.45,2133.5,2133.4,0.02025178]
[1625128142779,7.02949,2133.6,2133.4,0.02025178]
[1625128142878,15.0864005,2133.5,2133.4,0.02025178]
[1625128142978,10.0764005,2133.5,2133.4,0.02025178]
[1625128143086,0.0264005,2133.5,2133.4,0.02025178]
[1625128146062,28.3864005,2133.5,2133.4,0.02025178]
[1625128146400,19.5,2133.4,2133.2,0.02073785]
[1625128146502,24.51,2133.4,2133.2,0.02073785]
[1625128146598,19.5,2133.4,2133.2,0.02073785]
[1625128146701,5.01,2133.3,2133.2,0.02073785]
[1625128146799,5.0364005,2133.5,2133.2,0.02073785]
[1625128146906,0.0264005,2133.5,2133.2,0.02073785]
[1625128147898,0.02639193,2133.3,2133.2,0.02073785]
[1625128148009,4.05664371,2133.6,2133.2,0.02073785]
[1625128149921,7.02936,2133.6,2133.2,0.02073785]
[1625128150020,5.01,2133.4,2133.2,0.02073785]
[1625128150132,8.544891,2133.8,2133.2,0.02073785]
[1625128150324,16.544891,2133.8,2133.2,0.01082216]
[1625128150432,35.63566328,2133.7,2132.6,0.02202437]
[1625128150525,0.29062869,2133.6,2132.6,0.02202437]
[1625128150722,33.01,2133.4,2132.4,0.02238872]
[1625128150810,0.02119682,2133.0,2132.4,0.02238872]
[1625128150900,2.8,2132.6,2132.4,0.02238872]
[1625128151004,24.81,2132.5,2132.4,0.02238872]
[1625128151102,34.73322555,2132.5,2132.4,0.02238872]
[1625128151204,49.76742555,2132.5,2132.4,0.02238872]
[1625128151301,41.76742555,2132.5,2132.4,0.02238872]
[1625128151403,28.0,2132.4,2132.2,0.02271754]
[1625128151503,27.58050433,2132.3,2132.2,0.02271754]
[1625128151800,21.34,2132.3,2132.2,0.02271754]
[1625128152399,28.37479,2132.3,2132.2,0.02271754]
[1625128152502,28.33479,2132.3,2132.2,0.02271754]
[1625128153016,28.33479,2132.3,2132.2,0.03389457]
[1625128153171,5.01,2132.1,2131.8,0.02300909]
[1625128153369,5.01,2132.0,2131.8,0.02300909]
[1625128153571,20.90638784,2132.2,2131.8,0.02300909]
[1625128153768,0.00638784,2132.2,2131.8,0.02300909]
[1625128153872,0.00638784,2132.2,2131.8,0.04326087]
[1625128154778,0.00638784,2132.2,2131.8,0.86200087]
[1625128155183,0.00638784,2132.2,2131.9,0.81892]
[1625128155474,0.01164955,2132.1,2131.9,0.81892]
[1625128156477,0.01164955,2132.1,2131.8,0.86200087]
[1625128156786,0.01164955,2132.1,2131.9,0.16]
[1625128157081,0.01164955,2132.1,2131.8,0.86200087]
[1625128157824,0.02329908,2132.0,2131.8,0.86200087]
[1625128158026,0.02329908,2132.0,2131.8,0.04326087]
[1625128160372,0.0116448,2131.9,2131.8,0.04326087]
[1625128161476,0.01164955,2132.0,2131.8,0.04326087]
[1625128162168,0.01164955,2132.0,2131.9,0.00610264]
[1625128164175,11.01164955,2132.0,2131.9,0.00610264]
[1625128165525,10.99503334,2132.0,2131.9,10.95610264]
[1625128166618,10.99503334,2132.0,2131.9,0.00610264]
[1625128167870,10.99503334,2132.0,2131.9,0.01727564]
[1625128168320,10.99503334,2132.0,2131.9,0.13727564]
[1625128168967,10.99503334,2132.0,2131.9,0.01727564]
[1625128170515,10.99503334,2132.0,2131.9,0.01727138]
[1625128175246,10.99503334,2132.0,2131.8,7.05450028]
[1625128175451,10.99503334,2132.0,2131.9,25.58472388]
[1625128175750,10.99503334,2132.0,2131.9,9.58472388]
[1625128176103,0.00638784,2132.2,2131.9,16.38378969]
[1625128176208,0.00638784,2132.2,2131.9,21.0696617]
[1625128176309,7.84e-06,2132.2,2131.9,21.0696617]
[1625128176401,7.84e-06,2132.2,2132.0,7.23143]
[1625128176601,7.84e-06,2132.2,2132.1,6.51510096]
[1625128176705,0.02238872,2132.6,2132.1,11.52510096]
[1625128176801,0.02238872,2132.6,2132.3,3.51472]
[1625128176900,0.02238872,2132.6,2132.3,14.82579093]
[1625128177110,0.02238872,2132.6,2132.4,0.2]
[1625128177871,0.02238872,2132.6,2132.5,28.66]
[1625128177972,0.02238872,2132.6,2132.5,38.03233]
[1625128178177,0.02238872,2132.6,2132.5,38.17233]
[1625128178373,0.02238872,2132.6,2132.5,14.52233]
[1625128179177,0.02238872,2132.6,2132.5,21.09798495]
[1625128179278,0.02238872,2132.6,2132.5,16.08798495]
[1625128179373,0.02238872,2132.6,2132.5,9.51233]
[1625128179977,0.02238872,2132.6,2132.5,16.17214588]
[1625128180271,0.02238872,2132.6,2132.5,9.51233]
[1625128180471,0.03257696,2132.6,2132.5,9.51233]
[1625128180781,0.03257696,2132.6,2132.5,0.14]
[1625128181086,0.03257696,2132.6,2131.9,0.00681008]
[1625128181183,6.23691101,2132.6,2131.9,0.00681008]
[1625128181276,0.03257696,2132.6,2131.9,0.00681008]
[1625128181578,5.04257696,2132.6,2131.9,0.00681008]
[1625128181676,7.06504696,2132.6,2131.9,7.03901008]
[1625128182931,0.02037637,2132.4,2131.9,7.03901008]
[1625128183427,0.02037637,2132.4,2131.9,0.00681008]
[1625128183628,0.02037637,2132.4,2132.0,0.2]
[1625128184451,0.02037637,2132.4,2132.0,3.7157053]
[1625128184654,0.02037637,2132.4,2132.1,0.2]
[1625128184856,0.02037637,2132.4,2132.1,7.23161]
[1625128185458,0.0203689,2132.2,2132.1,7.23161]
[1625128186790,0.0203689,2132.2,2132.1,0.2]
[1625128186975,0.0203689,2132.2,2131.9,5.01681008]
[1625128187872,0.02036888,2132.2,2131.9,8.53260008]
[1625128188174,0.02036888,2132.2,2132.1,7.03161]
[1625128188475,0.02036888,2132.2,2132.1,7.23161]
[1625128190489,0.02238872,2132.6,2132.1,7.23161]
[1625128190582,0.02238872,2132.6,2132.1,0.2]
[1625128190683,0.02238872,2132.6,2132.2,3.7154003]
[1625128190882,0.02238872,2132.6,2132.4,7.03088]
[1625128192006,0.02238872,2132.6,2132.3,10.5468]
[1625128192205,0.02238872,2132.6,2132.3,3.51541]
[1625128192716,0.02238872,2132.6,2132.0,0.01850008]
[1625128192807,0.01638872,2132.6,2132.0,0.01850008]
[1625128192909,0.01638872,2132.6,2132.4,0.01849632]
[1625128194224,0.01638872,2132.6,2132.5,17.68081]
[1625128194423,0.01638872,2132.6,2132.5,17.84081]
[1625128195778,0.02202437,2132.8,2132.6,25.45]
[1625128195881,0.02202437,2132.8,2132.6,28.9646036]
[1625128196082,0.02202437,2132.8,2132.7,15.42]
[1625128196183,0.02202437,2132.8,2132.7,0.12]
[1625128196485,0.02202437,2132.8,2132.6,3.5146036]
[1625128196988,0.02202437,2132.8,2132.7,7.02929]
[1625128197982,0.02202437,2132.8,2132.7,0.00929103]
[1625128198990,0.02202437,2132.8,2132.7,20.53059103]
[1625128199101,0.02202437,2132.8,2132.7,12.11065103]
[1625128199180,0.02202437,2132.8,2132.7,12.29065103]
[1625128200523,0.02202437,2132.8,2132.7,12.30880742]
[1625128200633,0.02202437,2132.8,2132.7,12.12880742]
[1625128200727,0.02202437,2132.8,2132.7,5.09874742]
[1625128201026,0.02202437,2132.8,2132.7,4.11054742]
[1625128201125,5.67202437,2132.8,2132.7,4.11054742]
[1625128201576,5.67202437,2132.8,2132.7,0.02744742]
[1625128202458,28.0,2132.7,2132.2,0.02271754]
[1625128202552,39.49980399,2132.6,2132.0,0.00638784]
[1625128202641,5.01,2132.5,2132.0,0.00638784]
[1625128202745,6.65565458,2132.4,2132.0,0.00638784]
[1625128202845,6.67837212,2132.4,2132.0,0.00638784]
[1625128202942,5.01,2132.2,2132.0,0.00638784]
[1625128203041,9.8778,2132.2,2132.0,0.00638784]
[1625128203144,6.22102541,2132.1,2132.0,0.00638784]
[1625128203241,22.32102541,2132.1,2132.0,0.00638784]
[1625128203344,6.22102541,2132.1,2132.0,0.00638784]
[1625128203457,28.0,2131.9,2131.2,0.02377462]
[1625128203560,7.03667,2131.6,2131.2,0.02377462]
[1625128203660,11.53927,2131.6,2131.2,0.02377462]
[1625128203776,7.416668,2131.5,2131.2,0.02377462]
[1625128203846,5.01,2131.3,2131.2,0.02377462]
[1625128203954,29.92788584,2131.3,2131.2,0.02377462]
[1625128204071,6.32092179,2131.1,2130.8,6.068e-05]
[1625128204154,25.31443498,2131.1,2130.8,6.068e-05]
[1625128204358,25.35443498,2131.1,2130.8,6.068e-05]
[1625128205254,32.39283498,2131.1,2130.8,6.068e-05]
[1625128205633,32.43253565,2131.1,2130.8,6.068e-05]
[1625128205732,33.64783565,2131.1,2131.0,7.4e-06]
[1625128205833,41.64783565,2131.1,2131.0,7.4e-06]
[1625128205933,41.79783565,2131.1,2131.0,7.4e-06]
[1625128206633,33.01,2130.9,2130.0,1.24563634]
[1625128206737,8.41996753,2130.7,2130.0,0.01118911]
[1625128206849,5.01,2130.5,2130.0,0.01118911]
[1625128206939,7.83507168,2130.4,2130.0,0.01118911]
[1625128207046,0.00604747,2130.2,2130.0,0.01118911]
[1625128207135,11.32595714,2130.2,2130.0,0.01118911]
[1625128207252,34.80922716,2130.1,2128.6,15.25394]
[1625128207342,34.80922716,2130.1,2128.3,0.17145131]
[1625128207343,47.83642157,2130.1,2128.3,0.17145131]
[1625128207436,5.2,2130.0,2128.3,0.17145131]
[1625128207537,23.1159771,2129.9,2128.3,0.17145131]
[1625128207652,0.02162639,2129.8,2128.3,0.17145131]
[1625128207744,6.63636948,2129.6,2128.3,0.17145131]
[1625128207845,5.01,2129.4,2128.3,0.17145131]
[1625128207938,8.5518,2129.4,2128.3,0.17145131]
[1625128208052,23.20190028,2129.3,2128.3,0.17145131]
[1625128208138,28.21190028,2129.3,2128.2,0.01321203]
[1625128208239,19.0199,2129.4,2128.2,0.01321203]
[1625128208333,16.54,2129.3,2128.2,0.01321203]
[1625128208644,0.04,2129.3,2128.2,0.01321203]
[1625128208892,2.4681,2129.4,2128.2,0.01321203]
[1625128208988,2.4681,2129.4,2128.2,8.76152552]
[1625128209091,11.00512639,2129.8,2128.2,8.76152552]
[1625128209197,11.00512639,2129.8,2128.4,5.01]
[1625128209306,11.00512639,2129.8,2128.5,8.31865037]
[1625128209399,0.0170819,2129.5,2128.5,8.31865037]
[1625128209496,0.03418245,2129.5,2128.7,5.01]
[1625128209603,0.03418245,2129.5,2128.4,7.32964063]
[1625128209898,0.03418245,2129.5,2129.0,9.38728]
[1625128210596,0.00820775,2129.3,2129.0,9.38728]
[1625128210897,0.00820775,2129.3,2128.6,12.3892]
[1625128211100,0.00820775,2129.3,2129.2,12.76920797]
[1625128211672,0.03419081,2129.5,2129.2,12.86920797]
[1625128211755,2.45e-06,2129.5,2129.3,27.95]
[1625128212269,2.45e-06,2129.5,2129.3,34.50760059]
[1625128212364,2.45e-06,2129.5,2129.4,6.46373071]
[1625128212577,2.45e-06,2129.5,2129.3,34.98963]
[1625128212656,2.45e-06,2129.5,2129.4,0.2]
[1625128212755,2.45e-06,2129.5,2129.4,0.05]
[1625128213055,2.45e-06,2129.5,2129.4,3.05]
[1625128213155,0.01174088,2129.5,2129.4,3.05]
[1625128213257,1.76e-06,2129.5,2129.4,3.0]
[1625128215018,1.76e-06,2129.5,2129.2,2.01920797]
[1625128215117,4.57590176,2129.5,2129.2,0.01920797]
[1625128215424,0.06,2129.4,2129.2,0.01920797]
[1625128215718,5.01,2129.3,2129.2,0.01920797]
[1625128216533,1.0238,2129.4,2129.2,0.01920797]
[1625128216938,0.02162639,2129.8,2129.2,0.01920797]
[1625128218197,0.02162639,2129.8,2129.2,7.05998797]
[1625128218284,0.02162639,2129.8,2129.2,7.08167952]
[1625128218589,0.02162639,2129.8,2129.2,7.14167952]
[1625128218891,0.02162639,2129.8,2129.2,7.08167952]
[1625128219290,0.02162639,2129.8,2129.2,0.04089952]
[1625128220465,0.02162639,2129.8,2129.2,4.77499952]
[1625128220549,0.02162639,2129.8,2129.2,11.48336967]
[1625128220648,0.02162639,2129.8,2129.2,11.40003544]
[1625128221052,0.02162639,2129.8,2129.2,4.77500366]
[1625128221149,0.02162639,2129.8,2129.3,6.61753418]
[1625128221352,0.02162639,2129.8,2129.4,0.12]
[1625128221650,0.02162639,2129.8,2129.2,4.77500366]
[1625128221752,0.02162639,2129.8,2129.4,7.04015]
[1625128222150,0.02162639,2129.8,2129.4,6.94447]
[1625128222502,0.23944672,2129.5,2129.4,6.94447]
[1625128222693,6.72e-06,2129.5,2129.4,6.94447]
[1625128222944,6.72e-06,2129.5,2129.4,10.04447]
[1625128223050,0.02162639,2129.8,2129.7,27.95]
[1625128223146,0.02162639,2129.8,2129.7,24.15]
[1625128223445,0.02162639,2129.8,2129.7,25.07745021]
[1625128223546,0.02162639,2129.8,2129.7,24.15]
[1625128223848,0.02162639,2129.8,2129.7,12.99]
[1625128223956,0.02162639,2129.8,2129.7,20.02895]
[1625128224247,0.00604747,2130.2,2129.7,20.02895]
[1625128224351,0.00604747,2130.2,2129.7,19.98895]
[1625128225795,0.00604747,2130.2,2129.7,12.95]
[1625128227745,0.00604747,2130.2,2129.6,0.02162639]
[1625128227846,4.56714747,2130.2,2129.6,0.02162639]
[1625128228046,5.01,2130.0,2129.6,0.02162639]
[1625128228554,0.18,2129.9,2129.6,0.02162639]
[1625128228845,0.12,2129.8,2129.6,0.02162639]
[1625128229145,0.12,2129.8,2129.4,0.00935691]
[1625128229254,21.75,2129.7,2129.4,0.00935691]
[1625128229351,5.01,2129.5,2129.2,0.03800446]
[1625128230252,25.68668431,2129.4,2128.2,0.01321203]
[1625128230349,34.28719431,2129.4,2128.2,0.01321203]
[1625128230461,5.01,2129.2,2128.2,0.01321203]
[1625128230555,8.841,2129.2,2128.2,0.01321203]
[1625128231349,8.841,2129.2,2128.3,5.01]
[1625128231350,3.831,2129.2,2128.3,5.01]
[1625128231449,3.831,2129.2,2128.4,7.04316]
[1625128231553,3.831,2129.2,2128.4,6.59534119]
[1625128231713,0.01920797,2129.4,2128.4,6.59534119]
[1625128232211,0.01920797,2129.4,2128.7,3.0]
[1625128232711,0.01920797,2129.4,2128.8,7.05813828]
[1625128232805,0.01920797,2129.4,2128.8,0.01629828]
[1625128233703,0.01920797,2129.4,2128.8,7.05843828]
[1625128234349,0.01920797,2129.4,2129.0,3.5208]
[1625128234561,0.01920797,2129.4,2128.8,7.05843828]
[1625128234650,0.01920797,2129.4,2128.8,0.01629828]
[1625128234851,5.02920797,2129.4,2128.8,0.01629828]
[1625128234952,0.01920797,2129.4,2128.8,0.01629828]
[1625128235050,5.01,2129.2,2128.8,0.01629828]
[1625128235311,1.5032,2129.3,2128.8,0.01629828]
[1625128235419,6.3932,2129.3,2128.8,0.01629828]
[1625128235515,5.01,2129.2,2128.8,0.01629828]
[1625128235611,6.3932,2129.3,2128.8,0.01629828]
[1625128235920,1.3832,2129.3,2128.8,0.01629828]
[1625128236013,5.13,2129.2,2128.8,0.01629828]
[1625128236230,5.01,2129.1,2128.8,0.01629828]
[1625128236335,5.01,2129.0,2128.8,0.01629828]
[1625128236528,3.1981,2129.1,2128.8,0.01629828]
[1625128237130,3.1981,2129.1,2128.8,7.05896828]
[1625128237732,0.21073302,2129.4,2128.8,7.05896828]
[1625128237834,0.21073302,2129.4,2129.0,3.52072]
[1625128238235,0.21073302,2129.4,2129.1,7.0415]
[1625128238541,0.21073302,2129.4,2129.0,12.9092]
[1625128238843,0.21073302,2129.4,2129.0,3.52072]
[1625128239452,0.21073302,2129.4,2128.8,0.01629828]
[1625128239549,5.01,2129.3,2128.8,0.01629828]
[1625128239653,11.26898752,2129.3,2128.8,0.01629828]
[1625128239749,11.44872786,2129.3,2128.8,0.01629828]
[1625128239848,5.19,2129.3,2128.8,0.01629828]
[1625128240051,6.37048394,2129.3,2128.8,0.01629828]
[1625128240156,6.19048394,2129.3,2128.8,0.01629828]
[1625128240257,1.69663302,2129.4,2128.8,0.01629828]
[1625128240359,7.9777034,2129.4,2128.8,3.01629828]
[1625128240711,1.69663302,2129.4,2128.8,3.01629828]
[1625128240808,1.69663302,2129.4,2128.8,10.05898828]
[1625128240911,8.02573017,2129.4,2128.8,3.01629828]
[1625128241308,5.01,2129.2,2128.8,3.01629828]
[1625128241415,5.01,2129.2,2128.8,0.01629828]
[1625128242122,3.1371,2129.3,2128.8,0.01629828]
[1625128242514,0.19146037,2129.2,2128.8,0.01629828]
[1625128245240,0.19146037,2129.2,2128.8,7.05899828]
[1625128245339,0.14146037,2129.2,2128.8,7.05899828]
[1625128246941,0.14146037,2129.2,2128.8,0.01629828]
[1625128247043,4.16006037,2129.2,2128.8,0.01629828]
[1625128247868,11.20387037,2129.2,2128.8,0.01629828]
[1625128248260,11.24387037,2129.2,2128.8,0.01629828]
[1625128248562,4.20006037,2129.2,2128.8,0.01629828]
[1625128249160,4.20006037,2129.2,2128.8,7.05920828]
[1625128249261,0.18146037,2129.2,2128.8,7.05920828]
[1625128250674,0.18146037,2129.2,2128.8,14.10126258]
[1625128250771,0.01920797,2129.4,2128.8,10.75475258]
[1625128250880,0.01920797,2129.4,2128.9,6.64333669]
[1625128250978,0.01920797,2129.4,2128.9,6.66249742]
[1625128251477,0.02162639,2129.8,2129.0,27.95]
[1625128251581,0.02162639,2129.8,2129.2,3.52053]
[1625128252120,0.02162639,2129.8,2129.1,15.9084817]
[1625128252419,0.02162639,2129.8,2129.2,0.01920797]
[1625128252820,7.06361639,2129.8,2129.2,0.01920797]
[1625128252923,0.02162639,2129.8,2129.2,0.01920797]
[1625128253328,0.02162639,2129.8,2129.2,3.16250797]
[1625128253424,0.02162639,2129.8,2129.3,10.12710697]
[1625128253557,0.02162639,2129.8,2129.3,10.28710697]
[1625128253633,0.02162639,2129.8,2129.3,3.68022]
[1625128253729,10.83897386,2130.3,2129.4,22.75]
[1625128253928,7.04159,2129.9,2129.4,22.75]
[1625128254026,7.04159,2129.9,2129.3,1.1043]
[1625128254371,9.38836,2130.2,2129.3,1.1043]
[1625128254469,9.38836,2130.2,2129.2,16.89974474]
[1625128254578,0.14529763,2129.8,2129.2,16.89974474]
[1625128254671,0.14529763,2129.8,2129.6,0.02162639]
[1625128255418,0.14529763,2129.8,2129.6,0.02767386]
[1625128256507,0.14529763,2129.8,2129.7,0.006]
[1625128257218,0.13424248,2129.8,2129.7,0.006]
[1625128257810,27.54424248,2129.8,2129.7,0.006]
[1625128257913,27.35,2129.7,2129.2,0.01920797]
[1625128258114,5.01,2129.5,2129.2,0.01920797]
[1625128258308,0.12,2129.4,2129.2,0.01920797]
[1625128258925,34.99368,2129.3,2128.8,0.01629828]
[1625128259025,34.88822528,2129.2,2128.3,0.5556424]
[1625128259121,5.01,2129.1,2128.3,0.5556424]
[1625128259223,5.01,2129.0,2128.3,0.5556424]
[1625128259322,5.02629828,2129.0,2128.3,0.5556424]
[1625128259421,5.17629828,2129.0,2128.3,0.5556424]
[1625128259523,0.18,2128.9,2128.3,0.5556424]
[1625128260118,7.04605,2128.7,2128.3,0.5556424]
[1625128260218,10.68565,2128.7,2128.3,0.5556424]
[1625128260323,5.01,2128.5,2128.3,0.5556424]
[1625128262771,12.05638,2128.5,2128.3,0.5556424]
[1625128262964,8.24,2128.4,2128.3,0.5556424]
[1625128263211,0.04,2128.4,2128.3,0.5556424]
[1625128264712,13.41498,2128.5,2128.3,0.5556424]
[1625128264813,14.45,2128.4,2127.6,0.01023215]
[1625128265113,14.46321203,2128.4,2127.6,0.01023215]
[1625128265598,7.06025203,2128.4,2127.6,7.05684215]
[1625128265599,0.01321203,2128.4,2127.6,7.05684215]
[1625128266073,0.01321203,2128.4,2127.6,0.01023215]
[1625128266775,5.01,2128.5,2127.7,26.8]
[1625128266874,0.14268223,2128.3,2127.7,26.8]
[1625128266980,7.19014223,2128.3,2127.6,6.86023215]
[1625128267476,0.14268223,2128.3,2127.7,0.00615119]
[1625128269324,5.01,2128.2,2127.7,0.00615119]
[1625128270349,0.14268223,2128.3,2127.7,0.00615119]
[1625128271742,5.15268223,2128.3,2127.7,0.00615119]
[1625128272143,0.06,2128.2,2127.7,0.00615119]
[1625128272320,5.01,2128.1,2127.7,0.00615119]
[1625128272812,5.01,2128.0,2127.7,0.00615119]
[1625128272912,7.04788,2128.2,2127.7,0.00615119]
[1625128273815,5.01,2128.0,2127.7,0.00615119]
[1625128274215,11.73248,2128.2,2127.7,0.00615119]
[1625128274555,5.01,2128.0,2127.7,0.00615119]
[1625128275453,6.21862715,2127.9,2127.7,0.00615119]
[1625128275657,24.36,2127.8,2127.7,0.00615119]
[1625128275752,30.74728633,2127.8,2127.7,0.00615119]
[1625128276056,30.92728633,2127.8,2127.7,0.00615119]
[1625128276358,11.57728633,2127.8,2127.7,0.00615119]
[1625128276454,11.72728633,2127.8,2127.7,0.00615119]
[1625128276552,19.72728633,2127.8,2127.7,0.00615119]
[1625128276656,32.96,2127.7,2126.1,10.59245]
[1625128276874,32.96,2127.7,2126.1,1.7784]
[1625128276875,27.59172911,2127.4,2126.1,1.7784]
[1625128276949,57.59172911,2127.4,2125.1,11.0046]
[1625128277043,57.59172911,2127.4,2125.0,3.15119517]
[1625128277044,0.18487105,2126.2,2125.0,0.01119517]
[1625128277150,28.73981903,2126.2,2125.0,0.01119517]
[1625128277268,3.46,2126.0,2125.0,0.01119517]
[1625128277348,15.0,2125.7,2125.0,0.01119517]
[1625128277450,5.01,2125.6,2125.0,0.01119517]
[1625128277554,12.9751226,2125.5,2125.0,0.01119517]
[1625128277645,12.81172285,2125.5,2125.0,0.01119517]
[1625128277744,5.16,2125.4,2125.0,0.01119517]
[1625128277846,5.01,2125.2,2125.0,0.01119517]
[1625128277944,8.0716,2125.2,2125.0,0.01119517]
[1625128278041,7.21355165,2125.1,2125.0,0.01119517]
[1625128278142,12.40355165,2125.1,2125.0,0.01119517]
[1625128278344,38.15355165,2125.1,2123.4,5.42959442]
[1625128278507,7.05956,2124.2,2123.4,5.23433434]
[1625128278593,6.32411649,2125.0,2123.5,27.95]
[1625128278690,0.51120155,2125.1,2123.7,20.0]
[1625128278793,0.51120155,2125.1,2124.3,0.31018592]
[1625128278890,0.51120155,2125.1,2124.4,6.82081406]
[1625128279066,0.51120155,2125.1,2124.2,11.37582454]
[1625128279167,0.51120155,2125.1,2124.3,6.46137092]
[1625128279268,0.51120155,2125.1,2124.4,2.76183913]
[1625128279371,0.51120155,2125.1,2124.5,6.37532511]
[1625128279468,0.51120155,2125.1,2124.5,1.998]
[1625128279565,3.6,2125.8,2124.5,1.998]
[1625128279666,3.6,2125.8,2124.6,6.40601071]
[1625128279766,7.71624155,2125.9,2124.6,6.40601071]
[1625128279867,0.51120155,2125.9,2124.8,5.01]
[1625128279980,0.51120155,2125.9,2124.9,9.19888914]
[1625128280177,0.51120155,2125.9,2125.1,5.01]
[1625128280265,0.51120155,2125.9,2125.2,10.0]
[1625128280472,7.96419052,2126.8,2125.3,27.95]
[1625128280570,7.81419052,2126.8,2125.4,0.2014432]
[1625128280728,0.15,2127.1,2126.2,0.01321203]
[1625128280922,7.46421965,2127.1,2126.2,0.01321203]
[1625128281019,7.11980493,2127.1,2126.2,0.01321203]
[1625128281451,0.15,2127.1,2126.2,0.01321203]
[1625128281557,6.82619987,2127.1,2126.2,0.01321203]
[1625128281653,0.15,2127.1,2126.2,0.01321203]
[1625128281853,6.71760809,2127.1,2126.2,0.01321203]
[1625128282053,0.15,2127.1,2126.2,0.01321203]
[1625128282454,6.71935518,2127.1,2126.2,0.01321203]
[1625128282550,6.69472764,2127.1,2126.2,0.01321203]
[1625128282761,0.15,2127.1,2126.2,0.01321203]
[1625128282951,6.67684423,2127.1,2126.2,0.01321203]
[1625128283052,0.15,2127.1,2126.2,0.01321203]
[1625128283160,6.87084018,2127.1,2126.2,0.01321203]
[1625128283257,7.05198,2127.0,2126.2,0.01321203]
[1625128283407,6.69095012,2126.9,2126.2,0.01321203]
[1625128283562,0.15,2126.9,2126.2,0.01321203]
[1625128283662,5.16,2126.9,2126.2,0.01321203]
[1625128284260,6.62965671,2126.8,2126.2,0.01321203]
[1625128284360,5.01,2126.6,2126.2,0.01321203]
[1625128284460,6.86460835,2126.8,2126.2,0.01321203]
[1625128284567,11.87460835,2126.8,2126.2,0.01321203]
[1625128284668,6.86460835,2126.8,2126.2,0.01321203]
[1625128284761,12.06365,2126.6,2126.2,0.01321203]
[1625128284861,11.77450911,2126.5,2126.2,0.01321203]
[1625128284964,11.92450911,2126.5,2126.2,0.01321203]
[1625128285163,27.95,2126.3,2125.4,3.82142]
[1625128285263,7.08105994,2126.2,2125.4,3.82142]
[1625128285362,5.01,2126.0,2125.4,3.82142]
[1625128285461,6.6126238,2125.9,2125.4,0.82142]
[1625128285663,5.01,2125.7,2125.4,0.82142]
[1625128285905,6.073,2125.8,2125.4,0.82142]
[1625128285999,1.063,2125.8,2125.4,0.82142]
[1625128286100,5.01,2125.6,2125.4,0.82142]
[1625128286202,6.073,2125.8,2125.4,0.82142]
[1625128286300,1.063,2125.8,2125.4,0.82142]
[1625128286505,6.073,2125.8,2125.4,0.82142]
[1625128287000,5.01,2125.8,2125.4,0.82142]
[1625128287101,6.5458004,2125.7,2125.4,2e-05]
[1625128287218,10.5992004,2125.7,2124.6,1.998]
[1625128287307,0.15,2125.6,2124.6,1.998]
[1625128287420,7.17164099,2125.4,2124.6,1.998]
[1625128287514,7.17164099,2125.4,2124.1,10.5194]
[1625128287613,5.01,2125.2,2124.3,6.39910496]
[1625128287702,3.2705,2125.2,2124.3,6.39910496]
[1625128287802,3.2705,2125.2,2124.0,10.402]
[1625128287899,3.2705,2125.2,2124.1,0.2]
[1625128288075,5.01,2125.0,2124.1,0.2]
[1625128288154,5.01,2125.0,2124.0,10.402]
[1625128288257,5.01,2125.0,2123.6,7.18636205]
[1625128288372,12.06804,2125.0,2123.3,6.46327532]
[1625128288460,0.15,2124.9,2123.4,11.921]